bitfinex-derivatives/quotes_ETHF0:USTF0_20260118
["timestamp","ask_amount","ask_price","bid_price","bid_amount"]
[1768777205636,0.44508822,3352.2,3351.0,0.147689]
[1768777205931,1.39524414,3352.0,3351.0,0.147689]
[1768777206135,0.95015592,3351.7,3350.1,2.81078411]
[1768777206334,0.95015592,3351.4,3350.2,0.14929]
[1768777208136,1.39524414,3350.7,3349.2,0.95015592]
[1768777208344,0.95015592,3350.7,3349.2,1.39778411]
[1768777208644,0.95015592,3350.7,3349.3,0.44762819]
[1768777209038,0.95015592,3350.7,3349.4,0.14933]
[1768777209926,0.95015592,3350.4,3349.3,0.00307591]
[1768777210128,0.44508822,3350.8,3349.3,0.00307591]
[1768777210331,0.95015592,3350.4,3349.3,0.00307591]
[1768777210746,0.95015592,3350.3,3349.3,0.00307591]
[1768777211239,0.95015592,3350.0,3349.3,0.00307591]
[1768777211540,0.95267083,3350.0,3349.3,0.00307591]
[1768777211742,0.95267083,3350.0,3348.9,0.14935]
[1768777212537,0.95267083,3350.0,3348.5,0.44762819]
[1768777212749,0.95267083,3350.0,3348.5,0.45093001]
[1768777213042,0.95015592,3349.7,3348.5,0.00330182]
[1768777213336,0.95015592,3349.4,3348.5,0.00330182]
[1768777213840,0.95015592,3349.1,3347.9,0.14939]
[1768777214143,0.95015592,3348.8,3347.4,0.14942]
[1768777214334,0.95015592,3348.5,3347.0,0.14943]
[1768777214532,0.14935,3348.9,3347.1,0.44762819]
[1768777214734,0.95015592,3349.1,3347.6,1.09956592]
[1768777215029,0.14934,3349.2,3347.6,0.14941]
[1768777215234,0.95015592,3349.2,3347.7,1.09955592]
[1768777215744,0.95015592,3348.9,3347.7,0.1494]
[1768777220844,0.44508822,3349.2,3347.7,0.1494]
[1768777223640,0.47183187,3349.0,3347.4,0.44762819]
[1768777223839,0.47183187,3348.9,3347.2,0.14943]
[1768777225144,0.47183187,3349.9,3347.5,0.47270406]
[1768777225343,0.14933,3349.4,3347.6,0.14941]
[1768777225543,0.14933,3349.4,3347.7,0.1494]
[1768777225743,0.62116187,3349.4,3347.7,0.1494]
[1768777226947,0.47183187,3349.3,3347.7,0.1494]
[1768777227347,0.47183187,3349.3,3347.8,0.1494]
[1768777234063,0.47183187,3349.3,3347.9,0.14939]
[1768777234262,0.14933,3349.4,3348.0,0.14939]
[1768777235261,0.14931,3349.8,3348.1,0.47270406]
[1768777235552,0.47434678,3350.0,3348.6,0.14936]
[1768777236065,0.00251491,3350.0,3348.6,0.14936]
[1768777236260,0.94694289,3349.9,3348.7,0.14936]
[1768777236463,0.00251491,3350.0,3348.7,0.14936]
[1768777237167,0.94695322,3349.9,3348.7,0.14936]
[1768777237355,0.94695322,3349.8,3348.7,0.14936]
[1768777237554,0.47434678,3350.0,3348.7,0.14936]
[1768777237756,0.94786321,3349.9,3348.7,0.14936]
[1768777238057,0.94786321,3349.8,3348.7,0.14936]
[1768777238261,0.94786321,3349.7,3348.7,0.14936]
[1768777238464,0.00251491,3350.0,3348.7,0.14936]
[1768777238762,0.94840151,3349.9,3348.7,0.14936]
[1768777239076,0.94840151,3349.8,3348.7,0.14936]
[1768777239370,0.00251491,3350.0,3348.7,0.14936]
[1768777239556,0.94893346,3349.9,3348.7,0.14936]
[1768777239756,0.94893346,3349.8,3348.7,0.14936]
[1768777239957,0.00251491,3350.0,3348.7,0.14936]
[1768777240163,0.94892534,3349.9,3348.7,0.14936]
[1768777240361,0.00251491,3350.0,3348.7,0.14936]
[1768777240565,0.94951773,3349.9,3348.7,0.14936]
[1768777240763,0.94951773,3349.8,3348.7,0.14936]
[1768777240964,0.00251491,3350.0,3348.7,0.14936]
[1768777241165,0.9495189,3349.9,3348.7,0.14936]
[1768777241472,0.9495189,3349.8,3348.7,0.14936]
[1768777241768,0.9495189,3349.7,3348.7,0.14936]
[1768777241971,0.00251491,3350.0,3348.7,0.14936]
[1768777242172,0.94996958,3349.9,3348.7,0.14936]
[1768777242358,0.00251491,3350.0,3348.7,0.14936]
[1768777242359,0.94996958,3349.8,3348.7,0.14936]
[1768777242670,0.94996958,3349.7,3348.7,0.14936]
[1768777242856,0.00251491,3350.0,3348.7,0.14936]
[1768777243056,0.95026029,3349.9,3348.7,0.14936]
[1768777243261,0.95026029,3349.8,3348.7,0.14936]
[1768777243461,0.95026029,3349.7,3348.7,0.14936]
[1768777243657,0.00251491,3350.0,3348.7,0.14936]
[1768777243853,0.95038387,3349.9,3348.7,0.14936]
[1768777244068,0.95038387,3349.8,3348.7,0.14936]
[1768777244257,0.95038387,3349.7,3348.7,0.14936]
[1768777244460,0.00251491,3350.0,3348.7,0.14936]
[1768777244752,0.95030361,3349.9,3348.7,0.14936]
[1768777244953,0.95030361,3349.8,3348.7,0.14936]
[1768777245172,0.95030361,3349.7,3348.7,0.14936]
[1768777245469,0.00251491,3350.0,3348.7,0.14936]
[1768777245664,0.95019367,3349.9,3348.7,0.14936]
[1768777245865,0.95019367,3349.8,3348.7,0.14936]
[1768777246063,0.950193,3349.7,3348.3,0.14937]
[1768777246369,0.49829732,3349.8,3348.3,0.14937]
[1768777246574,0.95012843,3349.7,3348.3,0.14937]
[1768777246764,0.49829732,3349.8,3348.3,0.14937]
[1768777246961,0.9501279,3349.7,3348.3,0.14937]
[1768777247161,0.49829732,3349.8,3348.3,0.14937]
[1768777247465,0.14931,3349.9,3348.3,0.14937]
[1768777247673,0.95008906,3349.8,3348.3,0.14937]
[1768777247873,0.14931,3349.9,3348.3,0.14937]
[1768777248072,0.95008881,3349.8,3348.4,0.60993776]
[1768777248271,0.00251491,3350.0,3348.6,0.60992776]
[1768777248475,0.9501265,3349.9,3349.0,0.46056776]
[1768777248773,0.00251491,3350.0,3349.0,0.46056776]
[1768777249673,0.00251491,3350.0,3349.1,0.60990776]
[1768777250491,0.64753732,3351.3,3349.5,0.46056776]
[1768777250784,0.64753732,3351.3,3349.7,0.60987776]
[1768777251187,0.64753732,3351.3,3349.8,0.14931]
[1768777251576,0.64970457,3351.3,3349.8,0.15156253]
[1768777252388,0.00216725,3351.3,3349.8,0.15156253]
[1768777253891,0.00216725,3351.3,3349.8,0.6614758]
[1768777255990,0.00216725,3351.3,3349.9,0.14931]
[1768777256485,0.00216725,3351.3,3350.0,0.1493]
[1768777256690,0.00216725,3351.3,3350.1,0.65921327]
[1768777260196,0.00216725,3351.3,3350.2,0.14929]
[1768777260494,0.00216725,3351.3,3350.3,0.14929]
[1768777261191,0.00216725,3351.3,3349.8,0.5121658]
[1768777261395,0.50380039,3351.0,3349.8,0.00225253]
[1768777261696,0.14927,3350.8,3349.8,0.00225253]
[1768777264192,0.14927,3350.8,3349.5,0.14932]
[1768777264394,0.14927,3350.8,3349.0,0.65925327]
[1768777264395,0.65307039,3350.8,3349.0,0.65925327]
[1768777264693,0.65307039,3350.8,3349.1,0.14934]
[1768777265090,0.50380039,3350.8,3349.1,0.15309655]
[1768777265285,0.14929,3350.2,3349.1,0.00375655]
[1768777265687,0.65310039,3350.1,3348.6,0.14936]
[1768777266292,0.1493,3350.1,3348.6,0.14936]
[1768777266686,0.1493,3350.1,3348.6,0.15291138]
[1768777268400,0.1493,3350.1,3348.8,0.50991327]
[1768777268902,0.50380039,3350.6,3348.8,0.50991327]
[1768777269198,0.14928,3350.4,3348.8,0.50991327]
[1768777272490,0.14928,3350.4,3348.8,0.65926327]
[1768777272895,0.14928,3350.4,3348.9,0.50991327]
[1768777273389,0.14928,3350.4,3349.0,0.50991327]
[1768777274003,0.14928,3350.4,3349.0,0.65925327]
[1768777274200,0.14926,3350.9,3349.3,0.50991327]
[1768777274396,0.00216725,3351.3,3348.6,0.00355138]
[1768777274397,0.15140725,3351.3,3349.6,0.65923327]
[1768777274595,0.15140725,3351.3,3349.9,0.50991327]
[1768777274795,0.00216725,3351.3,3350.0,0.65921327]
[1768777274997,0.00216725,3351.3,3350.1,0.50991327]
[1768777275202,0.00216725,3351.3,3350.1,0.65921327]
[1768777275505,0.00216725,3351.3,3350.4,0.50991327]
[1768777288209,0.00216725,3351.3,3350.4,0.65919327]
[1768777288601,0.00216725,3351.3,3350.5,0.503222]
[1768777290910,1.61265523,3352.7,3350.9,0.503222]
[1768777291103,3.19337794,3353.0,3350.9,0.503222]
[1768777291104,0.1492,3352.4,3350.9,0.652482]
[1768777291297,0.94881618,3352.3,3351.1,0.503222]
[1768777291504,0.94881618,3352.2,3351.1,0.503222]
[1768777291710,0.1492,3352.4,3351.1,0.503222]
[1768777292012,0.94868576,3352.3,3351.1,0.5064496]
[1768777292212,0.15195114,3352.4,3351.1,0.5064496]
[1768777292403,0.94850925,3352.3,3351.1,0.5064496]
[1768777292603,0.15195114,3352.4,3351.1,0.5064496]
[1768777292902,0.94866609,3352.3,3351.1,0.5064496]
[1768777293102,0.15195114,3352.4,3351.1,0.5064496]
[1768777293297,0.94852139,3352.3,3351.1,0.5064496]
[1768777293512,0.1492,3352.3,3351.1,0.5064496]
[1768777293710,0.14921,3352.0,3351.1,0.0032276]
[1768777296515,0.95035499,3351.4,3350.3,0.14929]
[1768777297211,0.95035499,3351.4,3350.0,0.503222]
[1768777297605,0.95035499,3351.4,3350.0,0.65462365]
[1768777299513,0.95035499,3351.2,3350.1,0.50496096]
[1768777299711,0.95035499,3350.9,3350.0,0.00210165]
[1768777299914,0.95035499,3350.6,3349.3,0.50496096]
[1768777300801,0.95035499,3350.6,3349.3,0.50808883]
[1768777301008,0.14927,3350.8,3349.3,0.50808883]
[1768777301209,0.94966487,3350.7,3349.3,0.50808883]
[1768777301513,0.14927,3350.8,3349.3,0.50808883]
[1768777301716,0.94989458,3350.7,3349.3,0.50808883]
[1768777301916,0.14927,3350.8,3349.3,0.50808883]
[1768777302116,0.94989273,3350.7,3349.3,0.00312787]
[1768777302319,0.14928,3350.5,3349.3,0.00312787]
[1768777304016,0.49134429,3350.8,3349.3,0.00312787]
[1768777304214,0.49134429,3350.6,3348.6,0.14936]
[1768777304413,1.44154178,3350.5,3348.6,0.14936]
[1768777304619,0.95019749,3350.4,3348.6,0.14936]
[1768777304822,0.95019749,3350.3,3348.6,0.14936]
[1768777305113,0.49134429,3350.5,3348.6,0.14936]
[1768777305422,0.94944324,3350.4,3348.6,0.15283614]
[1768777305614,0.14929,3350.2,3348.6,0.15283614]
[1768777306721,0.14929,3350.2,3348.6,0.6577971]
[1768777307322,0.1493,3350.1,3348.6,0.6577971]
[1768777311323,0.1493,3350.1,3348.7,0.65432096]
[1768777311524,0.1493,3350.1,3348.8,0.50496096]
[1768777311922,0.1493,3350.1,3348.9,0.50496096]
[1768777313513,0.1493,3350.1,3348.8,0.14935]
[1768777314326,0.1493,3350.0,3348.8,0.14935]
[1768777314522,0.15238263,3350.0,3348.8,0.14935]
[1768777314924,0.14931,3349.9,3348.6,0.00347614]
[1768777315918,0.00308263,3350.0,3348.7,0.49926731]
[1768777316519,0.14931,3349.9,3348.6,0.15283614]
[1768777316915,0.14931,3349.9,3348.6,0.00347614]
[1768777317422,1.60490276,3349.9,3348.6,0.00347614]
[1768777318420,0.14932,3349.6,3348.6,0.00347614]
[1768777318621,1.95240635,3349.9,3348.6,0.00347614]
[1768777318820,0.14933,3349.4,3348.6,0.00347614]
[1768777319115,1.95240635,3349.9,3347.9,0.64865731]
[1768777319116,0.49681359,3349.8,3347.9,0.64865731]
[1768777319320,1.45559276,3349.4,3347.9,0.64865731]
[1768777319622,0.14934,3349.2,3347.9,0.64865731]
[1768777320020,0.14934,3349.2,3347.9,0.65229888]
[1768777320928,0.14934,3349.2,3347.9,0.50290888]
[1768777321117,1.45559276,3349.4,3347.9,0.50290888]
[1768777321321,1.45559276,3348.9,3347.5,0.49926731]
[1768777321932,0.14936,3348.6,3347.5,0.49926731]
[1768777322334,0.14936,3348.6,3347.5,0.50230199]
[1768777324838,0.14937,3348.5,3347.1,0.49926731]
[1768777325634,1.45559276,3348.4,3347.1,0.49926731]
[1768777325930,0.14938,3348.2,3346.5,0.14946]
[1768777326134,0.14939,3348.1,3346.5,0.14946]
[1768777326640,0.1494,3347.9,3346.5,0.14946]
[1768777326841,0.1494,3347.9,3346.5,0.15246156]
[1768777327638,0.1494,3347.8,3346.5,0.00300156]
[1768777334440,0.64621359,3347.8,3346.5,0.00300156]
[1768777336736,0.64622359,3347.6,3346.5,0.00300156]
[1768777336936,0.9533686,3346.9,3345.9,0.14948]
[1768777337137,0.14941,3347.5,3345.9,0.14948]
[1768777337339,0.9533686,3346.9,3345.9,0.14948]
[1768777337939,0.9533686,3346.9,3345.9,0.15259273]
[1768777338340,0.9533686,3346.9,3345.9,0.00311273]
[1768777342344,0.9533686,3346.7,3345.9,0.00311273]
[1768777342540,0.9533686,3346.5,3345.9,0.00311273]
[1768777343451,0.9533686,3346.5,3345.4,0.55990006]
[1768777343745,0.9533686,3346.4,3345.4,0.55990006]
[1768777344145,0.9533686,3346.4,3345.4,0.005978]
[1768777344555,0.9533686,3345.9,3345.0,0.55392206]
[1768777344944,1.49706423,3346.5,3345.0,0.55392206]
[1768777345546,1.49706423,3346.5,3345.0,0.55661583]
[1768777347249,0.543205,3346.4,3345.0,0.00269377]
[1768777358064,0.57431037,3346.0,3345.0,0.00269377]
[1768777358566,1.5281696,3346.4,3345.0,0.00269377]
[1768777358767,0.95303485,3346.3,3345.0,0.00269377]
[1768777358963,0.95309025,3346.2,3345.0,0.00269377]
[1768777359171,0.57431037,3346.3,3345.0,0.00269377]
[1768777360878,0.95321342,3346.2,3345.0,0.00269377]
[1768777361077,0.57431037,3346.3,3345.0,0.00269377]
[1768777361280,0.95331251,3346.2,3345.0,0.00269377]
[1768777361481,0.57431037,3346.3,3345.0,0.00269377]
[1768777361679,0.95331468,3346.2,3345.0,0.00269377]
[1768777361881,0.57431037,3346.3,3345.0,0.00269377]
[1768777362179,0.95331747,3346.2,3345.0,0.00269377]
[1768777362381,0.57431037,3346.3,3345.0,0.00269377]
[1768777362576,1.52776073,3346.2,3345.0,0.00269377]
[1768777362782,0.57431037,3346.2,3345.0,0.00269377]
[1768777366284,0.57431037,3346.0,3345.0,0.00269377]
[1768777369982,2.24331037,3346.5,3345.0,0.00269377]
[1768777370178,0.95535993,3346.4,3345.0,0.00269377]
[1768777370375,0.95535993,3346.3,3345.0,0.00269377]
[1768777370578,0.95535993,3346.2,3345.0,0.00269377]
[1768777370778,0.95535993,3346.1,3345.0,0.00269377]
[1768777370981,0.57431037,3346.4,3345.0,0.00269377]
[1768777371286,1.5281696,3346.2,3345.0,0.00269377]
[1768777371483,0.57431037,3346.0,3345.0,0.00269377]
[1768777371882,0.57431037,3345.8,3345.0,0.00269377]
[1768777372590,0.57431037,3345.8,3344.3,0.14955]
[1768777372886,0.57431037,3345.8,3344.3,0.39655]
[1768777373489,0.57431037,3345.8,3344.3,0.3996231]
[1768777373685,0.59939623,3345.7,3344.3,0.3996231]
[1768777373886,0.95660042,3345.6,3344.3,0.1526231]
[1768777374086,0.59939623,3345.3,3344.3,0.0030731]
[1768777374391,0.59939623,3345.1,3344.3,0.0030731]
[1768777374580,0.60215155,3345.1,3344.3,0.0030731]
[1768777377188,0.60215155,3345.1,3343.6,0.14959]
[1768777377791,0.59939623,3344.9,3343.6,0.14959]
[1768777378183,0.59939623,3344.9,3343.6,0.15237998]
[1768777380186,0.59939623,3344.9,3343.6,0.00278998]
[1768777380388,0.59939623,3344.5,3343.6,0.00278998]
[1768777381092,0.59939623,3344.5,3342.0,1.90210251]
[1768777381093,0.59939623,3343.6,3341.7,0.56487694]
[1768777381392,0.59939623,3343.2,3341.8,0.14967]
[1768777381593,0.59939623,3342.8,3341.4,0.005986]
[1768777381895,0.59939623,3343.2,3341.4,0.57086294]
[1768777382095,0.14956,3344.2,3342.1,0.56487694]
[1768777382096,0.95385923,3343.9,3342.1,0.56487694]
[1768777382289,0.59939623,3344.1,3342.2,0.56487694]
[1768777382495,0.59939623,3344.1,3343.1,0.0102656]
[1768777382694,1.67,3344.5,3343.1,0.0102656]
[1768777382893,1.67,3344.5,3343.8,0.01368838]
[1768777383095,0.59939623,3344.6,3343.8,0.01660332]
[1768777383302,0.00275532,3345.1,3344.2,0.01711116]
[1768777383597,0.00275532,3345.1,3344.6,0.02053394]
[1768777383795,0.59939623,3344.6,3342.6,0.71450694]
[1768777383990,0.59939623,3343.7,3341.8,0.14967]
[1768777384192,0.59939623,3343.3,3341.8,0.14967]
[1768777384906,2.52125546,3343.8,3342.5,0.01026834]
[1768777385291,2.52125546,3343.8,3341.8,0.71750506]
[1768777385496,1.55325546,3343.8,3341.8,0.71750506]
[1768777385696,0.59939623,3343.8,3341.9,0.14966]
[1768777386595,0.59939623,3344.6,3342.5,0.71450694]
[1768777386797,0.59939623,3343.3,3341.8,0.00295812]
[1768777387095,0.59939623,3343.4,3341.8,0.00295812]
[1768777387303,2.26939623,3343.9,3341.9,0.14966]
[1768777387504,0.59939623,3343.9,3342.1,1.66838617]
[1768777387808,0.59939623,3344.5,3342.2,0.56487694]
[1768777387998,0.59939623,3344.4,3342.2,0.56487694]
[1768777388499,0.59939623,3344.1,3342.2,0.56487694]
[1768777388696,1.55325546,3343.8,3342.4,0.14964]
[1768777388996,0.59939623,3343.3,3341.8,0.00295812]
[1768777389203,0.59939623,3343.8,3342.0,0.95385923]
[1768777389708,0.59939623,3343.8,3341.8,0.00295812]
[1768777390193,1.37239623,3343.8,3341.8,0.00295812]
[1768777390595,0.59939623,3343.8,3342.1,1.51873617]
[1768777390792,0.59939623,3343.8,3342.0,0.14966]
[1768777392008,0.59939623,3344.5,3342.3,0.56487694]
[1768777392216,0.59939623,3344.3,3342.3,0.56487694]
[1768777393112,0.59939623,3344.3,3342.4,0.14964]
[1768777393797,0.59939623,3344.3,3342.6,1.51873617]
[1768777393997,0.59939623,3344.9,3342.7,0.56487694]
[1768777394301,0.59939623,3344.9,3343.0,0.14961]
[1768777394706,0.59939623,3344.9,3343.0,0.71448694]
[1768777395203,0.59939623,3344.7,3342.3,0.14964]
[1768777395399,0.59939623,3344.5,3342.3,0.14964]
[1768777395800,1.45739623,3344.5,3342.4,0.14964]
[1768777396102,0.59939623,3344.4,3342.4,0.14964]
[1768777396296,3.85,3344.5,3341.8,0.00295812]
[1768777396297,0.59939623,3344.2,3341.8,0.00295812]
[1768777396604,0.59939623,3344.0,3341.8,0.00295812]
[1768777396802,0.59939623,3343.8,3341.8,0.00295812]
[1768777397003,0.59939623,3343.6,3341.8,0.00295812]
[1768777397203,0.59939623,3343.6,3341.8,0.56783506]
[1768777397404,0.59939623,3343.6,3342.0,0.14965]
[1768777397904,0.59939623,3344.2,3342.2,0.14965]
[1768777398997,0.59939623,3344.2,3342.3,0.14964]
[1768777399399,0.59939623,3344.2,3342.2,0.56487694]
[1768777399701,0.59939623,3344.2,3341.8,0.00295812]
[1768777400292,0.59939623,3344.2,3342.1,0.14965]
[1768777400501,0.59939623,3344.0,3342.1,0.14965]
[1768777400895,0.59939623,3344.0,3341.8,0.00295812]
[1768777401500,0.59939623,3344.0,3342.3,0.14964]
[1768777405002,0.59939623,3344.0,3341.9,0.56487694]
[1768777405312,0.60718857,3343.8,3341.8,0.00295812]
[1768777405508,0.60718857,3343.6,3341.8,0.00295812]
[1768777405709,0.60718857,3343.4,3341.8,0.00295812]
[1768777405914,0.60718857,3343.2,3341.8,0.00295812]
[1768777406312,0.60718857,3343.2,3341.8,0.15261812]
[1768777407412,0.60718857,3343.0,3341.4,0.005986]
[1768777407716,0.60718857,3342.6,3340.2,0.74874331]
[1768777408010,1.46189038,3342.7,3340.2,0.74874331]
[1768777408011,0.60718857,3342.4,3340.3,0.14973]
[1768777408214,0.60718857,3342.2,3340.4,0.14973]
[1768777408409,0.61077479,3342.2,3340.5,0.14973]
[1768777409712,0.60718857,3342.0,3340.4,0.00291686]
[1768777409907,0.60718857,3341.8,3340.4,0.00291686]
[1768777410113,0.60718857,3341.6,3340.4,0.00291686]
[1768777410313,0.60718857,3341.4,3340.1,0.14974]
[1768777410516,0.60718857,3342.1,3340.1,0.14974]
[1768777410818,0.95256488,3342.0,3340.1,0.14974]
[1768777411020,0.95256488,3341.9,3340.1,0.14974]
[1768777411226,1.55975345,3341.8,3340.1,0.15317485]
[1768777411520,0.60718857,3341.8,3340.1,0.15317485]
[1768777412913,0.60718857,3341.8,3340.1,0.00343485]
[1768777413213,0.60718857,3341.5,3340.1,0.00343485]
[1768777414721,0.60718857,3341.3,3339.1,0.14978]
[1768777414916,0.60718857,3341.1,3339.1,0.14978]
[1768777415614,0.60718857,3340.9,3339.1,0.14978]
[1768777415815,0.60718857,3340.9,3339.1,0.15235572]
[1768777417018,5.27218857,3340.9,3339.1,0.00257572]
[1768777417323,0.60718857,3340.8,3339.1,0.15236572]
[1768777417520,1.671,3341.2,3339.2,0.14978]
[1768777417720,3.59809002,3341.3,3339.1,0.63490689]
[1768777417721,0.60409002,3341.3,3339.1,0.63490689]
[1768777417921,0.60409002,3341.3,3339.7,0.14976]
[1768777419618,0.60409002,3341.3,3339.1,0.78469689]
[1768777419812,0.60409002,3341.3,3339.1,0.63490689]
[1768777420020,0.60409002,3341.3,3339.6,0.14976]
[1768777420517,0.60409002,3341.3,3339.7,0.14976]
[1768777422227,0.60409002,3341.3,3339.1,0.00257572]
[1768777422625,0.60409002,3340.8,3339.1,0.00257572]
[1768777422837,0.60409002,3340.3,3339.1,0.00257572]
[1768777423622,0.60409002,3341.1,3339.1,0.00257572]
[1768777424418,0.60409002,3340.6,3339.1,0.00257572]
[1768777427436,0.60409002,3340.8,3339.1,0.00257572]
[1768777428129,0.60409002,3340.3,3337.8,0.14985]
[1768777428434,0.60409002,3340.2,3337.8,0.14985]
[1768777428625,0.60409002,3339.8,3337.8,0.14985]
[1768777428930,0.60409002,3339.6,3337.8,0.14985]
[1768777429128,0.60663377,3339.6,3337.8,0.15257611]
[1768777429531,0.60409002,3339.3,3337.8,0.00272611]
[1768777429927,0.60409002,3339.3,3337.4,0.005993]
[1768777430734,0.60409002,3339.3,3337.4,0.155853]
[1768777430935,0.60409002,3339.3,3337.5,0.14986]
[1768777431127,0.60409002,3339.3,3337.6,0.14986]
[1768777431336,0.60409002,3339.3,3337.7,0.14985]
[1768777431835,0.60409002,3339.3,3337.4,0.00858075]
[1768777431836,0.60663377,3339.6,3337.5,0.14986]
[1768777432032,0.60663377,3339.6,3337.6,0.14986]
[1768777432236,0.60663377,3339.6,3337.7,0.14985]
[1768777433133,0.60663377,3339.6,3337.4,0.00858075]
[1768777433834,5.27363377,3339.6,3337.4,0.00858075]
[1768777434037,0.60663377,3339.6,3337.5,0.62830447]
[1768777434229,0.60663377,3339.6,3337.6,0.14985]
[1768777435828,0.60663377,3339.6,3337.4,0.00858075]
[1768777435829,0.64630574,3339.3,3337.4,0.00858075]
[1768777436238,0.64630574,3339.1,3337.4,0.00858075]
[1768777437027,0.64630574,3339.1,3337.4,0.15844075]
[1768777437427,0.00254375,3339.6,3337.4,0.63688522]
[1768777437632,0.64630574,3339.4,3337.8,0.14985]
[1768777438342,0.64630574,3339.4,3338.0,0.14984]
[1768777438535,0.00254375,3339.6,3337.5,0.62830447]
[1768777438536,0.00254375,3339.6,3338.1,0.14983]
[1768777439134,0.00254375,3339.6,3337.4,0.00858075]
[1768777439135,0.64884949,3339.6,3337.4,0.00858075]
[1768777439442,0.94303809,3339.5,3337.4,0.00858075]
[1768777439641,0.64884949,3339.6,3337.4,0.00858075]
[1768777439940,0.94304032,3339.5,3337.4,0.00858075]
[1768777440143,0.64884949,3339.6,3337.4,0.00858075]
[1768777440333,0.64884949,3339.6,3337.9,0.14984]
[1768777440840,0.64630574,3339.5,3337.5,0.14986]
[1768777441031,0.64630574,3339.3,3337.4,0.00858075]
[1768777441231,0.64630574,3339.0,3337.3,0.6957887]
[1768777441433,1.46370993,3338.6,3337.3,0.59212291]
[1768777441737,1.46370993,3338.6,3336.0,0.62830447]
[1768777441738,1.46370993,3338.1,3336.0,0.62830447]
[1768777441936,1.46370993,3338.1,3335.6,0.14994]
[1768777441937,3.21300509,3338.1,3335.6,0.14994]
[1768777442235,0.94470502,3338.0,3335.6,0.78056999]
[1768777442439,0.94164393,3337.9,3335.7,0.77824447]
[1768777442632,0.94164393,3337.8,3335.7,0.77824447]
[1768777442836,0.94164393,3337.7,3335.7,0.77824447]
[1768777443044,0.94164393,3337.6,3335.7,0.77824447]
[1768777443342,1.46370993,3337.0,3334.6,0.14999]
[1768777443542,1.46370993,3337.0,3332.4,5.35202668]
[1768777443543,1.59945516,3337.7,3335.1,0.77827447]
[1768777443840,1.46370993,3336.7,3334.6,0.14999]
[1768777444148,1.46370993,3336.2,3334.0,1.31072]
[1768777444437,1.46370993,3335.7,3334.0,1.16432902]
[1768777445040,1.46370993,3336.1,3334.0,1.16432902]
[1768777445236,0.0031471,3336.2,3334.1,0.77831447]
[1768777445637,0.0031471,3336.2,3334.3,0.62830447]
[1768777445942,2.997,3337.4,3334.9,0.77828447]
[1768777446138,0.94736927,3337.3,3334.9,0.77828447]
[1768777446445,2.997,3337.4,3334.2,0.62830447]
[1768777446446,1.46370993,3336.7,3334.2,0.62830447]
[1768777446835,1.46751442,3336.7,3334.2,0.62830447]
[1768777447238,0.00521239,3336.5,3334.2,0.62830447]
[1768777447442,4.488,3336.4,3334.2,0.77830447]
[1768777447736,0.00521239,3336.5,3334.2,0.77830447]
[1768777447943,0.00521239,3336.4,3334.2,0.77830447]
[1768777448143,0.07908617,3336.1,3334.2,0.15]
[1768777448343,1.5427961,3335.7,3334.0,1.16432902]
[1768777448537,0.07908617,3335.6,3334.0,1.16432902]
[1768777449548,1.46370993,3335.2,3334.0,1.16432902]
[1768777449844,1.46370993,3335.2,3333.4,0.006]
[1768777450048,0.00429661,3335.1,3333.4,0.006]
[1768777450346,3.00229661,3335.1,3333.4,0.006]
[1768777450932,0.00429661,3335.1,3333.4,0.006]
[1768777451139,0.01448754,3335.7,3333.4,0.637325]
[1768777451346,0.01448754,3335.7,3333.6,0.15004]
[1768777451550,1.46370993,3335.3,3333.4,0.637325]
[1768777451737,1.46370993,3335.3,3333.4,0.00902053]
[1768777451940,0.01448754,3335.2,3332.8,0.62830447]
[1768777452141,4.071,3335.1,3333.0,0.62830447]
[1768777452441,0.01448754,3335.2,3333.0,0.62830447]
[1768777452640,1.47152278,3335.0,3333.0,0.62830447]
[1768777452839,3.00681285,3334.9,3333.0,0.0026072]
[1768777453036,0.00781285,3334.9,3333.0,0.0026072]
[1768777453235,1.46370993,3335.0,3333.0,0.0026072]
[1768777453444,4.46270993,3335.0,3333.0,0.0026072]
[1768777453646,0.01765394,3335.5,3333.0,0.63091167]
[1768777453852,0.01765394,3335.0,3333.0,0.63091167]
[1768777454059,0.01742572,3334.5,3333.0,0.0026072]
[1768777454349,2.999,3334.4,3333.0,0.0026072]
[1768777454538,1.46370993,3334.3,3333.0,0.0026072]
[1768777454734,1.46581055,3334.3,3333.0,0.0026072]
[1768777454941,0.02102145,3333.0,3327.6,5.35202668]
[1768777455140,1.46370993,3333.1,3324.7,17.17740527]
[1768777455141,0.02102145,3331.6,3328.1,0.62830447]
[1768777455441,1.46370993,3330.4,3328.2,0.05226889]
[1768777455635,0.02102145,3330.8,3328.2,0.68057336]
[1768777455636,1.46370993,3330.8,3328.2,0.68057336]
[1768777455838,1.46370993,3330.8,3328.8,0.62830447]
[1768777456035,0.00268538,3330.8,3328.8,0.63073089]
[1768777456249,0.00268538,3330.8,3328.9,0.15012]
[1768777456449,0.00268538,3330.8,3329.0,0.15012]
[1768777456743,0.025013,3330.8,3328.8,0.00242642]
[1768777457150,1.46370993,3330.2,3328.8,0.00242642]
[1768777457338,0.03168202,3330.6,3328.8,0.00242642]
[1768777457650,1.46370993,3329.7,3328.0,0.62830447]
[1768777457852,1.46370993,3329.8,3327.4,0.62830447]
[1768777458147,1.49420381,3329.8,3327.4,0.62830447]
[1768777458535,1.46370993,3329.3,3326.7,0.15034]
[1768777458741,1.46370993,3329.2,3326.8,0.62830447]
[1768777458940,2.92670993,3329.6,3326.8,0.62830447]
[1768777459151,0.02599377,3329.7,3326.8,0.62830447]
[1768777459346,0.03510028,3329.3,3326.8,0.62830447]
[1768777459558,1.46370993,3327.4,3325.7,1.17485114]
[1768777459752,0.03510028,3327.3,3324.0,0.62830447]
[1768777460048,0.03510028,3328.4,3324.9,0.62830447]
[1768777460253,0.04846538,3328.1,3325.2,0.62830447]
[1768777460552,1.46370993,3327.8,3325.2,0.63135628]
[1768777460856,0.00325535,3328.1,3325.7,0.62830447]
[1768777461157,0.00450721,3327.0,3325.7,0.62830447]
[1768777461356,0.00325535,3328.1,3325.7,0.77869447]
[1768777461647,0.00325535,3328.1,3326.1,0.62830447]
[1768777462050,0.05739894,3329.5,3326.7,0.62830447]
[1768777462247,3.002,3329.5,3326.8,0.62830447]
[1768777462448,0.04324464,3330.2,3327.1,1.87052198]
[1768777462651,0.04324464,3330.2,3327.2,0.68965684]
[1768777462851,3.05715063,3330.9,3327.6,0.68965684]
[1768777463147,1.90929169,3330.3,3328.0,0.68965684]
[1768777463454,0.06518072,3330.9,3329.1,0.01198641]
[1768777463651,0.06518072,3330.9,3328.0,0.68965684]
[1768777464256,0.07617298,3330.5,3328.0,0.68965684]
[1768777465455,0.22635298,3330.5,3328.0,0.68965684]
[1768777466054,0.09630833,3330.4,3327.6,0.00317898]